{"text_format":"3","workbook":"xlsx","n_sheets":1,"sheets":["1ere cde"],"not_rendered":{"images":1,"defined_names":1},"read":"whole","date_system":"1900"}

{"sheet":"1ere cde","index":0,"n_rows":39,"n_cols":8,"rows_kept":39,"merged":[[0,0,2,1],[0,2,0,7],[1,5,1,6],[3,3,3,5],[8,0,12,0],[13,0,17,0],[18,3,18,4],[19,3,19,4],[20,0,20,6],[21,0,21,6],[22,0,22,6],[24,5,24,7],[25,1,25,7],[26,1,27,7],[29,6,29,7],[30,0,30,2],[30,3,30,4],[30,6,30,7],[31,0,31,2],[31,3,31,4],[31,6,31,7],[32,5,32,7],[36,0,37,6],[38,0,40,6]]}
[null,null,"FFPJP COMITE REGIONAL  HAUTS DE France"]
[null,null,"Commande N°1","    F.F.P.JP - CD 59",null,"Commande",null,2026]
[]
["N°P",null,"Club :",{"$nulls":3},"Secteur"]
[]
[null,null,"Années de","Nombre","Nombre Nouveaux","Total","Prix","Montant"]
[null,"Catégorie","naissance","Renouvellements","licenciés  ","licenciés","Unitaire","Total"]
[]
["MASCULIN","Senior ","2008 et moins",null,null,{"$f":"SUM(D9:E9)","v":0},{"v":27.5,"d":"27.50 €"},{"$f":"IF(SUM(D9:E9)=0,\" \",F9*G9)","v":" "}]
[null,"Junior","2009 - 2010 - 2011",null,null,0,{"v":16.5,"d":"16.50 €"}," "]
[null,"Cadet","2012 - 2013 - 2014",null,null,0,{"v":7,"d":"7.00 €"}," "]
[null,"Minime ","2015 - 2016 -  2017",null,null,0,{"v":5,"d":"5.00 €"}," "]
[null,"Benjamin","2018 et plus",null,null,0,{"v":5,"d":"5.00 €"}," "]
["FEMININ","Senior ","2008 et moins",null,null,0,{"v":27.5,"d":"27.50 €"}," "]
[null,"Junior","2009 - 2010 - 2011",null,null,0,{"v":16.5,"d":"16.50 €"}," "]
[null,"Cadet","2012 - 2013 - 2014",null,null,0,{"v":7,"d":"7.00 €"}," "]
[null,"Minime ","2015 - 2016 -  2017",null,null,0,{"v":5,"d":"5.00 €"}," "]
[null,"Benjamin","2018 et plus",null,null,0,{"v":5,"d":"5.00 €"}," "]
[{"$nulls":3},"Total licenciés",null,{"$f":"SUM(F9:F18)","v":0},"TOTAL ",{"$f":"SUM(H9:H18)","v":{"v":0,"d":"0.00 €"}}]
[]
["                   AFFILIATION FFPJP & CD59 à régler à la 1ère commande de licences",{"$nulls":6},{"v":75,"d":"75.00 €"}]
["Frais de gestion à régler à la 1ère commande de licences",{"$nulls":6},{"v":30,"d":"30.00 €"}]
["MONTANT TOTAL à régler à la commande",{"$nulls":6},{"$f":"SUM(H19:H22)","v":{"v":105,"d":"105.00 €"}}]
[null,"A remplir par le club"]
[null,"Règlement :","Chèque N°",null,"Banque"]
[null," Nom Prénom, adresse et n° de téléphone du responsable de cette commande :"]
[]
[]
[]
[null,"( Obligatoire)",{"$nulls":4},"Date de la demande"]
["Nom du responsable licence  :"]
["Numéro de téléphone  :"]
[null,"Signature du responsable du club :",null,null,"Mail:"]
[]
["certifie exactes les informations figurant sur ce bordereau et que TOUS ces adhérents ont bien pris connaissance:"]
["* De la possibilité pour chaque licencié de ne pas souscrire à l'assurance dommages corporels et de son coût"]
["* De l'intêret de souscrire les garanties optionnelles, accidents corporels, correspondant à l'option \"avantage\" de la compagnie d'Assurance  M.M.A conformément à l'article L.321-4 du Code du Sport, par le biais de l'imprimé prévu à cet effet;"]
[]
["* Que les informations figurant sur ce formulaire sont exactes et autorise à ce qu’elles fassent l'objet d'un traitement informatique, conformément à la loi du 06/01/1978 et qu’elles soient utilisées à des fins  commerciales. Je bénéficie d'un droit d'accès, de rectification et d'opposition auprès des services du siège de la F.F.P.J.P. 13 rue trigance 13002 MARSEILLE"]